[Event "Titled Tuesday Blitz March 08 Late 2022"]
[White "Chiu, Isaac"]
[Black "Janaszak, Dawid"]
[WhiteFideId "30900654"]
[BlackFideId "1119206"]
[WhiteElo "2117"]
[BlackElo "2199"]
[Result "0-1"]
[Round "09"]
[TimeControl "180+1"]
[Date "2022.03.08"]
[WhiteClock "0:00:59"]
[BlackClock "0:00:50"]

1. e4 {[%clk 0:02:57]}  c5 {[%clk 0:02:58]} 2. b3 {[%clk 0:02:43]}  g6 {[%clk 0:02:54]} 3. Bb2 {[%clk 0:02:42]}  Nf6 {[%clk 0:02:54]} 4. e5 {[%clk 0:02:40]}  Nd5 {[%clk 0:02:54]} 5. e6 {[%clk 0:02:41]}  f6 {[%clk 0:02:52]} 6. exd7+ {[%clk 0:02:32]}  Bxd7 {[%clk 0:02:53]} 7. h4 {[%clk 0:02:31]}  Nc6 {[%clk 0:02:44]} 8. h5 {[%clk 0:02:31]}  Bg7 {[%clk 0:02:36]} 9. Nc3 {[%clk 0:02:26]}  Nxc3 {[%clk 0:02:23]} 10. Bxc3 {[%clk 0:02:27]}  Qc7 {[%clk 0:02:18]} 11. Bd3 {[%clk 0:02:00]}  O-O-O {[%clk 0:02:11]} 12. Nf3 {[%clk 0:01:56]}  gxh5 {[%clk 0:02:08]} 13. O-O {[%clk 0:01:54]}  Bg4 {[%clk 0:02:05]} 14. Qe1 {[%clk 0:01:48]}  e5 {[%clk 0:01:57]} 15. Nh4 {[%clk 0:01:42]}  Kb8 {[%clk 0:01:38]} 16. Be4 {[%clk 0:01:24]}  Nd4 {[%clk 0:01:32]} 17. Bxd4 {[%clk 0:01:13]}  exd4 {[%clk 0:01:33]} 18. d3 {[%clk 0:01:07]}  Rde8 {[%clk 0:01:19]} 19. Qd2 {[%clk 0:01:06]}  Bf8 {[%clk 0:00:55]} 20. a3 {[%clk 0:01:00]}  Bd6 {[%clk 0:00:55]} 21. Nf5 {[%clk 0:00:59]}  Bf4 {[%clk 0:00:50]} 0-1


[Site "https://www.chess.com"]

[Event "Titled Tuesday Blitz March 08 Late 2022"]
[White "Csonka, Balazs"]
[Black "Elissalt Cardenas, Hector"]
[WhiteFideId "742910"]
[BlackFideId "3500632"]
[WhiteElo "2404"]
[BlackElo "2159"]
[Result "1-0"]
[Round "09"]
[TimeControl "180+1"]
[Date "2022.03.09"]
[WhiteClock "0:02:29"]
[BlackClock "0:02:22"]

1. e4 {[%clk 0:03:00]}  d6 {[%clk 0:02:58]} 2. d4 {[%clk 0:02:59]}  Nf6 {[%clk 0:02:56]} 3. Nc3 {[%clk 0:02:57]}  e5 {[%clk 0:02:53]} 4. Nf3 {[%clk 0:02:49]}  exd4 {[%clk 0:02:50]} 5. Nxd4 {[%clk 0:02:49]}  a6 {[%clk 0:02:46]} 6. g3 {[%clk 0:02:45]}  Be7 {[%clk 0:02:46]} 7. Bg2 {[%clk 0:02:46]}  O-O {[%clk 0:02:41]} 8. O-O {[%clk 0:02:46]}  c5 {[%clk 0:02:34]} 9. Nde2 {[%clk 0:02:41]}  Nc6 {[%clk 0:02:30]} 10. b3 {[%clk 0:02:38]}  Re8 {[%clk 0:02:22]} 11. Bb2 {[%clk 0:02:33]}  b5 {[%clk 0:02:22]} 12. e5 {[%clk 0:02:29]} 1-0


[Site "https://www.chess.com"]

[Event "Titled Tuesday Blitz March 08 Late 2022"]
[White "Erdogdu, Mert"]
[Black "Domingo Nunez, Alejandro"]
[WhiteFideId "6301495"]
[BlackFideId "22245561"]
[WhiteElo "2485"]
[BlackElo "2215"]
[Result "0-1"]
[Round "09"]
[TimeControl "180+1"]
[Date "2022.03.08"]
[WhiteClock "0:00:10"]
[BlackClock "0:00:09"]

1. e4 {[%clk 0:03:00]}  g6 {[%clk 0:02:53]} 2. d4 {[%clk 0:03:00]}  Bg7 {[%clk 0:02:53]} 3. Nc3 {[%clk 0:03:00]}  c6 {[%clk 0:02:54]} 4. Nf3 {[%clk 0:02:59]}  d5 {[%clk 0:02:54]} 5. h3 {[%clk 0:03:00]}  dxe4 {[%clk 0:02:53]} 6. Nxe4 {[%clk 0:02:59]}  Nf6 {[%clk 0:02:53]} 7. Nxf6+ {[%clk 0:02:59]}  exf6 {[%clk 0:02:47]} 8. Bd3 {[%clk 0:02:59]}  O-O {[%clk 0:02:48]} 9. O-O {[%clk 0:02:59]}  a5 {[%clk 0:02:49]} 10. a4 {[%clk 0:02:56]}  Na6 {[%clk 0:02:49]} 11. c3 {[%clk 0:02:56]}  Nc7 {[%clk 0:02:49]} 12. Re1 {[%clk 0:02:56]}  Be6 {[%clk 0:02:47]} 13. Bf4 {[%clk 0:02:51]}  Nd5 {[%clk 0:02:47]} 14. Bh2 {[%clk 0:02:49]}  Re8 {[%clk 0:02:47]} 15. Qd2 {[%clk 0:02:48]}  Qd7 {[%clk 0:02:46]} 16. Re2 {[%clk 0:02:47]}  Nb6 {[%clk 0:02:37]} 17. Qc2 {[%clk 0:02:41]}  Bd5 {[%clk 0:02:32]} 18. Nd2 {[%clk 0:02:13]}  Rxe2 {[%clk 0:02:19]} 19. Bxe2 {[%clk 0:02:13]}  Re8 {[%clk 0:02:20]} 20. Bd3 {[%clk 0:02:02]}  Bh6 {[%clk 0:02:20]} 21. Nf1 {[%clk 0:02:01]}  Qe6 {[%clk 0:02:00]} 22. Bc7 {[%clk 0:01:52]}  Bb3 {[%clk 0:01:59]} 23. Qb1 {[%clk 0:01:52]}  Nd5 {[%clk 0:01:24]} 24. Bg3 {[%clk 0:01:38]}  Nb6 {[%clk 0:00:55]} 25. Bc7 {[%clk 0:01:34]}  Nd5 {[%clk 0:00:55]} 26. Bh2 {[%clk 0:01:18]}  Kg7 {[%clk 0:00:54]} 27. Ng3 {[%clk 0:01:16]}  Nf4 {[%clk 0:00:54]} 28. Bf1 {[%clk 0:01:14]}  Qd5 {[%clk 0:00:49]} 29. f3 {[%clk 0:00:50]}  f5 {[%clk 0:00:34]} 30. Kh1 {[%clk 0:00:50]}  Bg5 {[%clk 0:00:27]} 31. Bg1 {[%clk 0:00:46]}  Nxh3 {[%clk 0:00:20]} 32. Bh2 {[%clk 0:00:20]}  Nf2+ {[%clk 0:00:18]} 33. Kg1 {[%clk 0:00:20]}  Be3 {[%clk 0:00:18]} 34. Ra3 {[%clk 0:00:15]}  h5 {[%clk 0:00:10]} 35. c4 {[%clk 0:00:13]}  Qxd4 {[%clk 0:00:08]} 36. Rxb3 {[%clk 0:00:13]}  Ng4+ {[%clk 0:00:06]} 37. Kh1 {[%clk 0:00:13]}  Nxh2 {[%clk 0:00:07]} 38. Rxe3 {[%clk 0:00:13]}  Rxe3 {[%clk 0:00:06]} 39. Qc1 {[%clk 0:00:11]}  Nxf1 {[%clk 0:00:05]} 40. Nxf1 {[%clk 0:00:11]}  Rd3 {[%clk 0:00:05]} 41. Qc2 {[%clk 0:00:08]}  Rd1 {[%clk 0:00:05]} 42. Qe2 {[%clk 0:00:08]}  Ra1 {[%clk 0:00:04]} 43. Kh2 {[%clk 0:00:08]}  Rb1 {[%clk 0:00:04]} 44. Ng3 {[%clk 0:00:06]}  Rxb2 {[%clk 0:00:04]} 45. Qe7 {[%clk 0:00:06]}  Qf4 {[%clk 0:00:03]} 46. Kh3 {[%clk 0:00:06]}  h4 {[%clk 0:00:03]} 47. Qxh4 {[%clk 0:00:05]}  Qxh4+ {[%clk 0:00:03]} 48. Kxh4 {[%clk 0:00:06]}  Rb4 {[%clk 0:00:04]} 49. Kg5 {[%clk 0:00:06]}  Rxc4 {[%clk 0:00:04]} 50. f4 {[%clk 0:00:07]}  f6+ {[%clk 0:00:05]} 51. Kh4 {[%clk 0:00:07]}  Rxf4+ {[%clk 0:00:05]} 52. Kh3 {[%clk 0:00:08]}  Rg4 {[%clk 0:00:06]} 53. Ne2 {[%clk 0:00:08]}  Rxa4 {[%clk 0:00:07]} 54. Nc3 {[%clk 0:00:08]}  Ra3 {[%clk 0:00:07]} 55. g3 {[%clk 0:00:09]}  Rxc3 {[%clk 0:00:08]} 56. Kh4 {[%clk 0:00:10]}  g5+ {[%clk 0:00:08]} 57. Kh5 {[%clk 0:00:10]}  Rd3 {[%clk 0:00:08]} 58. g4 {[%clk 0:00:10]}  Rh3# {[%clk 0:00:09]} 0-1


[Site "https://www.chess.com"]

[Event "Titled Tuesday Blitz March 08 Late 2022"]
[White "Fishbein, Alexander"]
[Black "Salinas Herrera, Pablo"]
[WhiteFideId "2000377"]
[BlackFideId "3407128"]
[WhiteElo "2442"]
[BlackElo "2541"]
[Result "0-1"]
[Round "09"]
[TimeControl "180+1"]
[Date "2022.03.08"]
[WhiteClock "0:00:06"]
[BlackClock "0:00:07"]

1. e4 {[%clk 0:02:57]}  c5 {[%clk 0:02:57]} 2. Nf3 {[%clk 0:02:53]}  e6 {[%clk 0:02:56]} 3. d4 {[%clk 0:02:52]}  cxd4 {[%clk 0:02:57]} 4. Nxd4 {[%clk 0:02:52]}  a6 {[%clk 0:02:57]} 5. Nc3 {[%clk 0:02:52]}  Qc7 {[%clk 0:02:54]} 6. g3 {[%clk 0:02:52]}  d6 {[%clk 0:02:48]} 7. Bg2 {[%clk 0:02:50]}  Be7 {[%clk 0:02:47]} 8. O-O {[%clk 0:02:49]}  Nc6 {[%clk 0:02:47]} 9. a4 {[%clk 0:02:47]}  Bd7 {[%clk 0:02:46]} 10. Nb3 {[%clk 0:02:46]}  Na5 {[%clk 0:02:47]} 11. Bf4 {[%clk 0:02:40]}  Nc4 {[%clk 0:02:41]} 12. Rb1 {[%clk 0:02:24]}  Nxb2 {[%clk 0:02:33]} 13. Rxb2 {[%clk 0:02:17]}  Qxc3 {[%clk 0:02:33]} 14. Rb1 {[%clk 0:02:14]}  Qc7 {[%clk 0:02:33]} 15. a5 {[%clk 0:01:57]}  Nf6 {[%clk 0:02:31]} 16. Re1 {[%clk 0:01:55]}  e5 {[%clk 0:02:24]} 17. Be3 {[%clk 0:01:55]}  O-O {[%clk 0:02:21]} 18. Bb6 {[%clk 0:01:54]}  Qc6 {[%clk 0:02:21]} 19. c4 {[%clk 0:01:42]}  Qxc4 {[%clk 0:02:14]} 20. Rc1 {[%clk 0:01:40]}  Qe6 {[%clk 0:02:14]} 21. f4 {[%clk 0:01:24]}  Ba4 {[%clk 0:02:14]} 22. Nc5 {[%clk 0:01:18]}  dxc5 {[%clk 0:01:11]} 23. Qxa4 {[%clk 0:01:17]}  Rac8 {[%clk 0:01:06]} 24. Qc4 {[%clk 0:01:13]}  Qxc4 {[%clk 0:01:02]} 25. Rxc4 {[%clk 0:01:13]}  Nd7 {[%clk 0:01:03]} 26. Bh3 {[%clk 0:01:03]}  Nxb6 {[%clk 0:01:03]} 27. axb6 {[%clk 0:01:02]}  Rc6 {[%clk 0:01:03]} 28. Rd1 {[%clk 0:00:52]}  Rd8 {[%clk 0:01:00]} 29. Rd5 {[%clk 0:00:47]}  exf4 {[%clk 0:00:56]} 30. gxf4 {[%clk 0:00:38]}  Rxd5 {[%clk 0:00:54]} 31. exd5 {[%clk 0:00:37]}  Rxb6 {[%clk 0:00:54]} 32. Bc8 {[%clk 0:00:31]}  Kf8 {[%clk 0:00:41]} 33. Kg2 {[%clk 0:00:31]}  Rb2+ {[%clk 0:00:41]} 34. Kf3 {[%clk 0:00:31]}  b5 {[%clk 0:00:41]} 35. Re4 {[%clk 0:00:29]}  a5 {[%clk 0:00:38]} 36. Bd7 {[%clk 0:00:28]}  g6 {[%clk 0:00:32]} 37. f5 {[%clk 0:00:27]}  gxf5 {[%clk 0:00:32]} 38. Bxf5 {[%clk 0:00:25]}  Rxh2 {[%clk 0:00:31]} 39. Bd7 {[%clk 0:00:23]}  Rb2 {[%clk 0:00:29]} 40. Bc6 {[%clk 0:00:17]}  a4 {[%clk 0:00:28]} 41. Re3 {[%clk 0:00:13]}  h5 {[%clk 0:00:19]} 42. Ke4 {[%clk 0:00:13]}  h4 {[%clk 0:00:14]} 43. Ke5 {[%clk 0:00:11]}  Rb3 {[%clk 0:00:10]} 44. Re1 {[%clk 0:00:06]}  a3 {[%clk 0:00:07]} 45. d6 {[%clk 0:00:07]}  Bg5 {[%clk 0:00:06]} 46. Kd5 {[%clk 0:00:05]}  c4 {[%clk 0:00:04]} 47. d7 {[%clk 0:00:05]}  Rd3+ {[%clk 0:00:04]} 48. Kc5 {[%clk 0:00:04]}  c3 {[%clk 0:00:04]} 49. Bxb5 {[%clk 0:00:04]}  Rd2 {[%clk 0:00:05]} 50. Kb4 {[%clk 0:00:03]}  a2 {[%clk 0:00:04]} 51. Kxc3 {[%clk 0:00:03]}  Rd5 {[%clk 0:00:03]} 52. Bc4 {[%clk 0:00:03]}  Bf6+ {[%clk 0:00:02]} 53. Kb3 {[%clk 0:00:02]}  Rxd7 {[%clk 0:00:02]} 54. Kxa2 {[%clk 0:00:03]}  Rd2+ {[%clk 0:00:03]} 55. Kb3 {[%clk 0:00:02]}  Rf2 {[%clk 0:00:03]} 56. Rh1 {[%clk 0:00:02]}  Ke7 {[%clk 0:00:03]} 57. Bd5 {[%clk 0:00:02]}  Kd6 {[%clk 0:00:03]} 58. Ba8 {[%clk 0:00:02]}  Ke5 {[%clk 0:00:03]} 59. Kc4 {[%clk 0:00:03]}  Kf4 {[%clk 0:00:04]} 60. Kd3 {[%clk 0:00:03]}  Bg5 {[%clk 0:00:03]} 61. Bb7 {[%clk 0:00:02]}  f5 {[%clk 0:00:04]} 62. Rb1 {[%clk 0:00:02]}  Kg4 {[%clk 0:00:04]} 63. Rb4+ {[%clk 0:00:03]}  Bf4 {[%clk 0:00:05]} 64. Rb6 {[%clk 0:00:02]}  h3 {[%clk 0:00:05]} 65. Rg6+ {[%clk 0:00:03]}  Bg5 {[%clk 0:00:06]} 66. Rg8 {[%clk 0:00:03]}  f4 {[%clk 0:00:06]} 67. Rh8 {[%clk 0:00:03]}  Kg3 {[%clk 0:00:06]} 68. Bc8 {[%clk 0:00:04]}  h2 {[%clk 0:00:06]} 69. Bb7 {[%clk 0:00:03]}  f3 {[%clk 0:00:06]} 70. Rh5 {[%clk 0:00:04]}  Kg4 {[%clk 0:00:05]} 71. Rh8 {[%clk 0:00:03]}  Rd2+ {[%clk 0:00:05]} 72. Ke4 {[%clk 0:00:03]}  f2 {[%clk 0:00:06]} 73. Bc8+ {[%clk 0:00:03]}  Kg3 {[%clk 0:00:05]} 74. Rh3+ {[%clk 0:00:04]}  Kg2 {[%clk 0:00:06]} 75. Rh5 {[%clk 0:00:04]}  f1=Q {[%clk 0:00:06]} 76. Rxg5+ {[%clk 0:00:05]}  Kf2 {[%clk 0:00:06]} 77. Rf5+ {[%clk 0:00:05]}  Ke1 {[%clk 0:00:06]} 78. Rxf1+ {[%clk 0:00:06]}  Kxf1 {[%clk 0:00:07]} 79. Ke3 {[%clk 0:00:06]}  Re2+ {[%clk 0:00:07]} 0-1


[Site "https://www.chess.com"]

[Event "Titled Tuesday Blitz March 08 Late 2022"]
[White "Gadimbayli, Abdulla"]
[Black "Piesik, Piotr"]
[WhiteFideId "13404938"]
[BlackFideId "1136194"]
[WhiteElo "2311"]
[BlackElo "2190"]
[Result "1/2-1/2"]
[Round "09"]
[TimeControl "180+1"]
[Date "2022.03.08"]
[WhiteClock "0:00:28"]
[BlackClock "0:00:09"]

1. Nf3 {[%clk 0:03:00]}  g6 {[%clk 0:02:59]} 2. g3 {[%clk 0:02:55]}  Bg7 {[%clk 0:02:59]} 3. Bg2 {[%clk 0:02:56]}  d5 {[%clk 0:02:59]} 4. O-O {[%clk 0:02:56]}  Nf6 {[%clk 0:03:00]} 5. d4 {[%clk 0:02:55]}  O-O {[%clk 0:03:00]} 6. c4 {[%clk 0:02:55]}  c6 {[%clk 0:03:00]} 7. cxd5 {[%clk 0:02:54]}  cxd5 {[%clk 0:03:00]} 8. Nc3 {[%clk 0:02:55]}  Ne4 {[%clk 0:03:00]} 9. Nxe4 {[%clk 0:02:54]}  dxe4 {[%clk 0:03:01]} 10. Nd2 {[%clk 0:02:54]}  Qxd4 {[%clk 0:02:59]} 11. Nxe4 {[%clk 0:02:54]}  Nc6 {[%clk 0:02:58]} 12. Be3 {[%clk 0:02:48]}  Qxd1 {[%clk 0:02:54]} 13. Rfxd1 {[%clk 0:02:49]}  Bf5 {[%clk 0:02:44]} 14. Nc3 {[%clk 0:02:46]}  Rfd8 {[%clk 0:02:41]} 15. h3 {[%clk 0:02:37]}  Nd4 {[%clk 0:02:26]} 16. g4 {[%clk 0:02:31]}  Be6 {[%clk 0:02:23]} 17. Bxd4 {[%clk 0:02:01]}  Bxd4 {[%clk 0:02:21]} 18. e3 {[%clk 0:02:02]}  Bxc3 {[%clk 0:02:14]} 19. bxc3 {[%clk 0:02:03]}  Rxd1+ {[%clk 0:02:10]} 20. Rxd1 {[%clk 0:02:04]}  Rc8 {[%clk 0:02:10]} 21. Bxb7 {[%clk 0:02:00]}  Rxc3 {[%clk 0:02:08]} 22. Bd5 {[%clk 0:02:01]}  Bxd5 {[%clk 0:02:04]} 23. Rxd5 {[%clk 0:02:02]}  Ra3 {[%clk 0:02:04]} 24. Rd2 {[%clk 0:02:02]}  Kg7 {[%clk 0:02:02]} 25. Kg2 {[%clk 0:02:02]}  Kf6 {[%clk 0:02:02]} 26. Kf3 {[%clk 0:01:58]}  Ke5 {[%clk 0:02:02]} 27. Ke2 {[%clk 0:01:58]}  h5 {[%clk 0:01:57]} 28. f4+ {[%clk 0:01:51]}  Ke6 {[%clk 0:01:55]} 29. gxh5 {[%clk 0:01:50]}  gxh5 {[%clk 0:01:55]} 30. Kf3 {[%clk 0:01:51]}  f5 {[%clk 0:01:49]} 31. Ke2 {[%clk 0:01:38]}  h4 {[%clk 0:01:48]} 32. Kf3 {[%clk 0:01:38]}  Kf6 {[%clk 0:01:48]} 33. Rc2 {[%clk 0:01:38]}  e6 {[%clk 0:01:44]} 34. Rd2 {[%clk 0:01:37]}  Ke7 {[%clk 0:01:44]} 35. Rc2 {[%clk 0:01:37]}  Ra6 {[%clk 0:01:28]} 36. Rg2 {[%clk 0:01:18]}  Kd6 {[%clk 0:01:27]} 37. Rd2+ {[%clk 0:01:13]}  Kc5 {[%clk 0:01:27]} 38. Ke2 {[%clk 0:01:12]}  Kb4 {[%clk 0:01:26]} 39. Rc2 {[%clk 0:01:07]}  Ka3 {[%clk 0:01:24]} 40. Kd2 {[%clk 0:00:59]}  Rd6+ {[%clk 0:01:23]} 41. Ke2 {[%clk 0:00:50]}  a5 {[%clk 0:01:23]} 42. Ke1 {[%clk 0:00:49]}  a4 {[%clk 0:01:21]} 43. Ke2 {[%clk 0:00:49]}  Rb6 {[%clk 0:01:19]} 44. Kd3 {[%clk 0:00:49]}  Rb2 {[%clk 0:01:16]} 45. Rc6 {[%clk 0:00:40]}  Kxa2 {[%clk 0:01:16]} 46. Rxe6 {[%clk 0:00:40]}  a3 {[%clk 0:01:11]} 47. Re5 {[%clk 0:00:39]}  Rh2 {[%clk 0:00:57]} 48. Rxf5 {[%clk 0:00:39]}  Rxh3 {[%clk 0:00:56]} 49. Rb5 {[%clk 0:00:39]}  Rf3 {[%clk 0:00:51]} 50. Ke2 {[%clk 0:00:34]}  Rg3 {[%clk 0:00:50]} 51. Kf2 {[%clk 0:00:34]}  Rg8 {[%clk 0:00:47]} 52. e4 {[%clk 0:00:30]}  h3 {[%clk 0:00:46]} 53. Rh5 {[%clk 0:00:30]}  Kb2 {[%clk 0:00:38]} 54. Rxh3 {[%clk 0:00:30]}  a2 {[%clk 0:00:38]} 55. Rh1 {[%clk 0:00:30]}  Rc8 {[%clk 0:00:37]} 56. Ke3 {[%clk 0:00:30]}  Rc1 {[%clk 0:00:14]} 57. Rh2+ {[%clk 0:00:30]}  Rc2 {[%clk 0:00:14]} 58. Rh1 {[%clk 0:00:30]}  Rc1 {[%clk 0:00:08]} 59. Rh2+ {[%clk 0:00:30]}  Rc2 {[%clk 0:00:09]} 60. Rh1 {[%clk 0:00:28]}  Rc1 {[%clk 0:00:09]} 1/2-1/2


[Site "https://www.chess.com"]

[Event "Titled Tuesday Blitz March 08 Late 2022"]
[White "Galego, Luis"]
[Black "Rosen, Eric"]
[WhiteFideId "1900072"]
[BlackFideId "2032562"]
[WhiteElo "2516"]
[BlackElo "2362"]
[Result "1-0"]
[Round "09"]
[TimeControl "180+1"]
[Date "2022.03.09"]
[WhiteClock "0:00:20"]
[BlackClock "0:00:02"]

1. d4 {[%clk 0:02:41]}  d5 {[%clk 0:02:55]} 2. c4 {[%clk 0:02:41]}  e6 {[%clk 0:02:55]} 3. Nc3 {[%clk 0:02:40]}  Nf6 {[%clk 0:02:55]} 4. Nf3 {[%clk 0:02:40]}  a6 {[%clk 0:02:55]} 5. cxd5 {[%clk 0:02:38]}  exd5 {[%clk 0:02:56]} 6. Bg5 {[%clk 0:02:38]}  Be7 {[%clk 0:02:56]} 7. e3 {[%clk 0:02:38]}  O-O {[%clk 0:02:57]} 8. Bd3 {[%clk 0:02:38]}  Re8 {[%clk 0:02:57]} 9. O-O {[%clk 0:02:38]}  Nbd7 {[%clk 0:02:56]} 10. Rc1 {[%clk 0:02:36]}  c6 {[%clk 0:02:56]} 11. Qc2 {[%clk 0:02:31]}  Nf8 {[%clk 0:02:56]} 12. Ne5 {[%clk 0:02:28]}  Ng4 {[%clk 0:02:52]} 13. Bxe7 {[%clk 0:02:16]}  Qxe7 {[%clk 0:02:51]} 14. Nxg4 {[%clk 0:02:14]}  Bxg4 {[%clk 0:02:52]} 15. h3 {[%clk 0:02:11]}  Be6 {[%clk 0:02:50]} 16. Bf5 {[%clk 0:01:59]}  Ng6 {[%clk 0:02:49]} 17. Bxe6 {[%clk 0:01:55]}  Qxe6 {[%clk 0:02:44]} 18. b4 {[%clk 0:01:54]}  Nh4 {[%clk 0:02:31]} 19. Qe2 {[%clk 0:01:52]}  Qe7 {[%clk 0:02:13]} 20. Qg4 {[%clk 0:01:43]}  Rad8 {[%clk 0:01:52]} 21. a4 {[%clk 0:01:40]}  Rd6 {[%clk 0:01:51]} 22. g3 {[%clk 0:01:28]}  Ng6 {[%clk 0:00:50]} 23. b5 {[%clk 0:01:28]}  cxb5 {[%clk 0:00:47]} 24. axb5 {[%clk 0:01:27]}  a5 {[%clk 0:00:48]} 25. Na4 {[%clk 0:01:19]}  Nf8 {[%clk 0:00:40]} 26. b6 {[%clk 0:01:16]}  Rg6 {[%clk 0:00:33]} 27. Qf5 {[%clk 0:01:13]}  Qd7 {[%clk 0:00:26]} 28. Qxd7 {[%clk 0:00:58]}  Nxd7 {[%clk 0:00:26]} 29. Nc5 {[%clk 0:00:49]}  Nxb6 {[%clk 0:00:22]} 30. Nxb7 {[%clk 0:00:48]}  Nc4 {[%clk 0:00:23]} 31. Ra1 {[%clk 0:00:44]}  Ra8 {[%clk 0:00:19]} 32. Nc5 {[%clk 0:00:44]}  h5 {[%clk 0:00:17]} 33. h4 {[%clk 0:00:44]}  Rb6 {[%clk 0:00:15]} 34. Rfc1 {[%clk 0:00:41]}  Rb4 {[%clk 0:00:12]} 35. Rc3 {[%clk 0:00:33]}  a4 {[%clk 0:00:09]} 36. Nd3 {[%clk 0:00:32]}  Rb5 {[%clk 0:00:05]} 37. Nf4 {[%clk 0:00:31]}  g6 {[%clk 0:00:04]} 38. Nxd5 {[%clk 0:00:31]}  Nd2 {[%clk 0:00:01]} 39. Nc7 {[%clk 0:00:29]}  Rb1+ {[%clk 0:00:01]} 40. Rxb1 {[%clk 0:00:28]}  Nxb1 {[%clk 0:00:02]} 41. Rc1 {[%clk 0:00:24]}  Rb8 {[%clk 0:00:03]} 42. Na6 {[%clk 0:00:24]}  a3 {[%clk 0:00:03]} 43. Nxb8 {[%clk 0:00:24]}  a2 {[%clk 0:00:03]} 44. d5 {[%clk 0:00:19]}  a1=Q {[%clk 0:00:03]} 45. d6 {[%clk 0:00:19]}  Qb2 {[%clk 0:00:03]} 46. Rc8+ {[%clk 0:00:19]}  Kg7 {[%clk 0:00:02]} 47. d7 {[%clk 0:00:20]} 1-0


[Site "https://www.chess.com"]

[Event "Titled Tuesday Blitz March 08 Late 2022"]
[White "Gerbelli Neto, Eduardo"]
[Black "Curtis, John"]
[WhiteFideId "2103281"]
[BlackFideId "3200256"]
[WhiteElo "2178"]
[BlackElo "2203"]
[Result "1-0"]
[Round "09"]
[TimeControl "180+1"]
[Date "2022.03.09"]
[WhiteClock "0:01:08"]
[BlackClock "0:00:07"]

1. e4 {[%clk 0:03:00]}  e5 {[%clk 0:02:53]} 2. Nc3 {[%clk 0:03:00]}  Nf6 {[%clk 0:02:49]} 3. f4 {[%clk 0:02:59]}  d5 {[%clk 0:02:48]} 4. fxe5 {[%clk 0:03:00]}  Nxe4 {[%clk 0:02:48]} 5. d3 {[%clk 0:03:00]}  Qh4+ {[%clk 0:02:43]} 6. g3 {[%clk 0:03:00]}  Nxg3 {[%clk 0:02:43]} 7. Nf3 {[%clk 0:03:00]}  Qh5 {[%clk 0:02:42]} 8. Nxd5 {[%clk 0:03:00]}  Nxh1 {[%clk 0:02:02]} 9. Nxc7+ {[%clk 0:02:59]}  Kd8 {[%clk 0:01:57]} 10. Nxa8 {[%clk 0:03:00]}  Be7 {[%clk 0:01:50]} 11. Bg2 {[%clk 0:02:58]}  Bh4+ {[%clk 0:01:46]} 12. Kf1 {[%clk 0:02:58]}  Re8 {[%clk 0:00:43]} 13. Bf4 {[%clk 0:02:53]}  Nf2 {[%clk 0:00:26]} 14. Qe1 {[%clk 0:02:39]}  Nxd3 {[%clk 0:00:25]} 15. Qd2 {[%clk 0:02:31]}  Bf5 {[%clk 0:00:18]} 16. cxd3 {[%clk 0:02:29]}  Nc6 {[%clk 0:00:18]} 17. d4 {[%clk 0:02:28]}  Be4 {[%clk 0:00:16]} 18. Qe3 {[%clk 0:02:21]}  Bd5 {[%clk 0:00:15]} 19. Qa3 {[%clk 0:01:50]}  Be7 {[%clk 0:00:07]} 20. Qd3 {[%clk 0:01:42]}  g5 {[%clk 0:00:07]} 21. Bg3 {[%clk 0:01:33]}  g4 {[%clk 0:00:06]} 22. Nd2 {[%clk 0:01:28]}  Bxg2+ {[%clk 0:00:06]} 23. Kxg2 {[%clk 0:01:28]}  Kc8 {[%clk 0:00:06]} 24. d5 {[%clk 0:01:25]}  Bc5 {[%clk 0:00:04]} 25. dxc6 {[%clk 0:01:21]}  Rd8 {[%clk 0:00:04]} 26. cxb7+ {[%clk 0:01:19]}  Kxb7 {[%clk 0:00:04]} 27. Qxd8 {[%clk 0:01:18]}  Qh3+ {[%clk 0:00:05]} 28. Kh1 {[%clk 0:01:16]}  Qf1+ {[%clk 0:00:05]} 29. Rxf1 {[%clk 0:01:15]}  Bb6 {[%clk 0:00:06]} 30. Rf6 {[%clk 0:01:13]}  Bxd8 {[%clk 0:00:04]} 31. Rxf7+ {[%clk 0:01:13]}  Ka6 {[%clk 0:00:05]} 32. e6 {[%clk 0:01:12]}  Ba5 {[%clk 0:00:05]} 33. Nc4 {[%clk 0:01:11]}  Bd2 {[%clk 0:00:06]} 34. Nxd2 {[%clk 0:01:10]}  Kb5 {[%clk 0:00:04]} 35. Rxa7 {[%clk 0:01:10]}  Kc5 {[%clk 0:00:02]} 36. Rxh7 {[%clk 0:01:11]}  Kd5 {[%clk 0:00:03]} 37. e7 {[%clk 0:01:12]}  Kd4 {[%clk 0:00:04]} 38. Rg7 {[%clk 0:01:12]}  Kd3 {[%clk 0:00:05]} 39. Nb3 {[%clk 0:01:11]}  Kc2 {[%clk 0:00:06]} 40. Rxg4 {[%clk 0:01:11]}  Kd1 {[%clk 0:00:07]} 41. e8=Q {[%clk 0:01:09]}  Kc2 {[%clk 0:00:06]} 42. h4 {[%clk 0:01:09]}  Kb1 {[%clk 0:00:06]} 43. h5 {[%clk 0:01:10]}  Kxa2 {[%clk 0:00:06]} 44. Na5 {[%clk 0:01:09]}  Kxb2 {[%clk 0:00:05]} 45. h6 {[%clk 0:01:09]}  Kc2 {[%clk 0:00:06]} 46. h7 {[%clk 0:01:10]}  Kd1 {[%clk 0:00:07]} 47. h8=Q {[%clk 0:01:09]}  Kc2 {[%clk 0:00:08]} 48. Rc4+ {[%clk 0:01:08]}  Kd3 {[%clk 0:00:07]} 49. Qd4# {[%clk 0:01:08]} 1-0


[Site "https://www.chess.com"]